Workbook

Sheet Minor Asset List
F4: Minor Assets
A11: Number | B11: Asset ID | C11: Descr | D11: Supplier | E11: Acq Date | F11: Serial ID | G11: Custodian | H11: Location | I11: Year | J11: Period | K11: Category | L11: Cost | M11: Condition | N11: Verify Date | O11: Verified By
A12: 1 | B12: ASA1080 | C12: Dell Ultra sharp 24 | E12: 2019-04-17 | F12: C4M27R2 | G12: T Mtolo | H12: 214 | I12: 2020 | L12: 4,433.25 | M12: Good | O12: K Madzivha
A13: 2 | B13: ASA1057 | C13: Dell Ultra sharp 24 | E13: 2019-04-17 | F13: 7LL27R2 | G13: Vacant | H13: 211 | I13: 2020 | L13: 4,433.25 | M13: Good | O13: K Madzivha
A14: 3 | B14: ASA1063 | C14: Dell Ultra sharp 24 | E14: 2019-04-17 | F14: 24M27R2 | G14: S Ndamashe | H14: 231 | I14: 2020 | L14: 4,433.25 | M14: Good | O14: K Madzivha
A15: 4 | B15: ASA1058 | C15: Dell Ultra sharp 24 | E15: 2019-04-17 | F15: 32L27R2 | G15: Vacant | H15: 211 | I15: 2020 | L15: 4,433.25 | M15: Good | O15: K Madzivha
A16: 5 | B16: ASA1028 | C16: Dell Ultra sharp 24 | E16: 2019-04-17 | F16: 5DK27R2 | G16: H Tladi | H16: 229 | I16: 2020 | L16: 4,433.25 | M16: Good | O16: K Madzivha
A17: 6 | B17: ASA1014 | C17: Dell Ultra sharp 24 | E17: 2019-04-17 | F17: C2M27R7 | G17: K Khomani | H17: 217 | I17: 2020 | L17: 4,433.25 | M17: Good | O17: K Madzivha
A18: 7 | B18: ASA1068 | C18: Dell Ultra sharp 24 | E18: 2019-04-17 | F18: 87M27R2 | G18: S Skosana | H18: 203 | I18: 2020 | L18: 4,433.25 | M18: Good | O18: K Madzivha
A19: 8 | B19: ASA1015 | C19: Dell Ultra sharp 24 | E19: 2019-04-17 | F19: 63M27R2 | G19: D Naiker | H19: 219 | I19: 2020 | L19: 4,433.25 | M19: Good | O19: K Madzivha
A20: 9 | B20: ASA1089 | C20: Dell Ultra sharp 24 | E20: 2019-04-17 | F20: 2WL27R2 | G20: R Somanje | H20: 218 | I20: 2020 | L20: 4,433.25 | M20: Good | O20: K Madzivha
A21: 10 | B21: ASA1023 | C21: Dell Ultra sharp 24 | E21: 2019-04-17 | F21: 15M27R2 | G21: L Majoro | H21: 237 | I21: 2020 | L21: 4,433.25 | M21: Good | O21: K Madzivha
A22: 11 | B22: ASA1027 | C22: Dell Docking station K16A | E22: 2019-04-17 | F22: CNC00J5C6CMC008C60756A06 | G22: L Magalo | H22: 234 | I22: 2020 | L22: 4,870.25 | M22: Good | O22: K Madzivha
A23: 12 | B23: ASA1053 | C23: Dell Docking station K16A | E23: 2019-04-17 | F23: CNC00J5C6CMC008C60772A06 | G23: L Makwedini | H23: 210 | I23: 2020 | L23: 4,870.25 | M23: Good | O23: K Madzivha
A24: 13 | B24: ASA1069 | C24: Dell Docking station K16A | E24: 2019-04-17 | F24: CNC00J5C6CMC008C60702A06 | G24: S Skosana | H24: 203 | I24: 2020 | L24: 4,870.25 | M24: Good | O24: K Madzivha
A25: 14 | B25: ASA1018 | C25: Dell Docking station K16A | E25: 2019-04-17 | F25: CNC00J5C6CMC008C70181A06 | G25: Z Nkosi | H25: 233 | I25: 2020 | L25: 4,870.25 | M25: Good | O25: K Madzivha
A26: 15 | B26: ASA1021 | C26: Dell Docking station K16A | E26: 2019-04-17 | F26: CNC00J5C6CMC008C071DA06 | G26: E Moloto | H26: 233 | I26: 2020 | L26: 4,870.25 | M26: Good | O26: K Madzivha
A27: 16 | B27: ASA1011 | C27: Dell Docking station K16A | E27: 2019-04-17 | F27: CNC00J5C6CMC008C60773A06 | G27: A Tintelo | H27: 233 | I27: 2020 | L27: 4,870.25 | M27: Good | O27: K Madzivha
A28: 17 | B28: ASA1093 | C28: Dell Docking station K16A | E28: 2019-04-17 | F28: CNC00J5C6CMC008C60748A06 | G28: ICT | H28: 218 | I28: 2020 | L28: 4,870.25 | M28: Good | O28: K Madzivha
A29: 18 | B29: ASA1079 | C29: Dell Docking station K16A | E29: 2019-04-17 | F29: CNC00J5C6CMC008C7016BA06 | G29: T Mtolo | H29: 214 | I29: 2020 | L29: 4,870.25 | M29: Good | O29: K Madzivha
A30: 19 | B30: ASA1056 | C30: Dell Docking station K16A | E30: 2019-04-17 | F30: CNC00J5C6CMC008C60735A06 | G30: S Sillingo | H30: 233 | I30: 2020 | L30: 4,870.25 | M30: Good | O30: K Madzivha
A31: 20 | B31: ASA1082 | C31: Dell Docking station K16A | E31: 2019-04-17 | F31: CNC00J5C6CMC008C701A0A06 | G31: S Ndamashe | H31: 231 | I31: 2020 | L31: 4,870.25 | M31: Good | O31: K Madzivha
A32: 21 | B32: ASA1111 | C32: Photo Frames | D32: Ghandy Trading (Pty) Ltd | E32: 2019-07-19 | G32: Boardroom | H32: 202 | I32: 2020 | L32: 975 | M32: Good | O32: K Madzivha
A33: 22 | B33: ASA1112 | C33: Photo Frames | D33: Ghandy Trading (Pty) Ltd | E33: 2019-07-19 | G33: Boardroom | H33: 202 | I33: 2020 | L33: 975 | M33: Good | O33: K Madzivha
A34: 23 | B34: ASA1113 | C34: Photo Frames | D34: Ghandy Trading (Pty) Ltd | E34: 2019-07-19 | G34: Boardroom | H34: 202 | I34: 2020 | L34: 975 | M34: Good | O34: K Madzivha
A35: 24 | B35: ASA1114 | C35: Photo Frames | D35: Ghandy Trading (Pty) Ltd | E35: 2019-07-19 | G35: Boardroom | H35: 202 | I35: 2020 | L35: 975 | M35: Good | O35: K Madzivha
A36: 25 | B36: ASA1115 | C36: Photo Frames | D36: Ghandy Trading (Pty) Ltd | E36: 2019-07-19 | G36: Reception | H36: 202 | I36: 2020 | L36: 975 | M36: Good | O36: K Madzivha
A37: 26 | B37: ASA1116 | C37: Photo Frames | D37: Ghandy Trading (Pty) Ltd | E37: 2019-07-19 | G37: Reception | H37: 202 | I37: 2020 | L37: 975 | M37: Good | O37: K Madzivha
A38: 27 | B38: ASA1117 | C38: Photo Frames | D38: Ghandy Trading (Pty) Ltd | E38: 2019-07-19 | G38: Reception | H38: 202 | I38: 2020 | L38: 975 | M38: Good | O38: K Madzivha
A39: 28 | B39: ASA1118 | C39: Photo Frames | D39: Ghandy Trading (Pty) Ltd | E39: 2019-07-19 | G39: Reception | H39: 202 | I39: 2020 | L39: 975 | M39: Good | O39: K Madzivha
A40: 29 | B40: ASA1246 | C40: Digital Recorder | D40: Esizwe Group | E40: 2019-10-07 | G40: HR | H40: 212 | I40: 2020 | L40: =6897.7/2 -> 3448.85 | M40: Good | O40: K Madzivha
A41: 30 | C41: Digital Recorder | D41: Esizwe Group | E41: 2019-10-07 | G41: R Singh | H41: 208 | I41: 2020 | L41: =6897.7/2 -> 3448.85 | M41: Good | O41: K Madzivha
A42: 31 | B42: ASA0555 | C42: Cabinets Systems | D42: Icon Business Furniture | E42: 2019-10-19 | G42: =[1]Sheet1!$I$6 -> Z Thusi | H42: =[1]Sheet1!$H$6 -> 232 | I42: 2020 | L42: =147532.35/41 -> 3598.35 | M42: Good | O42: K Madzivha
A43: 32 | B43: ASA0301 | C43: Cabinets Systems | D43: Icon Business Furniture | E43: 2019-10-19 | G43: =[1]Sheet1!$I$20 -> K Madzivha | H43: =[1]Sheet1!$H$20 -> 220 | I43: 2020 | L43: =147532.35/41 -> 3598.35 | M43: Good | O43: K Madzivha
A44: 33 | B44: ASA0313 | C44: Cabinets Systems | D44: Icon Business Furniture | E44: 2019-10-19 | G44: GW | H44: =[1]Sheet1!H32 -> 211 | I44: 2020 | L44: 3598.35 | M44: Good | O44: K Madzivha
A45: 34 | B45: ASA0314 | C45: Cabinets Systems | D45: Icon Business Furniture | E45: 2019-10-19 | G45: GW | H45: =[1]Sheet1!H33 -> 211 | I45: 2020 | L45: 3598.35 | M45: Good | O45: K Madzivha
A46: 35 | B46: ASA0318 | C46: Cabinets Systems | D46: Icon Business Furniture | E46: 2019-10-19 | G46: =[1]Sheet1!I37 -> S Skosana | H46: =[1]Sheet1!H37 -> 205 | I46: 2020 | L46: 3598.35 | M46: Good | O46: K Madzivha
A47: 36 | B47: ASA0319 | C47: Cabinets Systems | D47: Icon Business Furniture | E47: 2019-10-19 | G47: =[1]Sheet1!I38 -> S Skosana | H47: =[1]Sheet1!H38 -> 205 | I47: 2020 | L47: 3598.35 | M47: Good | O47: K Madzivha
A48: 37 | B48: ASA0350 | C48: Cabinets Systems | D48: Icon Business Furniture | E48: 2019-10-19 | G48: =[1]Sheet1!$I$70 -> T Zama | H48: =[1]Sheet1!$H$70 -> 207 | I48: 2020 | L48: 3598.35 | M48: Good | O48: K Madzivha
A49: 38 | B49: ASA0358 | C49: Cabinets Systems | D49: Icon Business Furniture | E49: 2019-10-19 | G49: =[1]Sheet1!$I$78 -> I Masekoa | H49: =[1]Sheet1!$H$78 -> 209 | I49: 2020 | L49: 3598.35 | M49: Good | O49: K Madzivha
A50: 39 | B50: ASA0366 | C50: Cabinets Systems | D50: Icon Business Furniture | E50: 2019-10-19 | G50: =[1]Sheet1!$I$86 -> L Makwedini | H50: =[1]Sheet1!$H$86 -> 210 | I50: 2020 | L50: 3598.35 | M50: Good | O50: K Madzivha
A51: 40 | B51: ASA0372 | C51: Cabinets Systems | D51: Icon Business Furniture | E51: 2019-10-19 | G51: =[1]Sheet1!$I$92 -> R Singn | H51: =[1]Sheet1!$H$92 -> 208 | I51: 2020 | L51: 3598.35 | M51: Good | O51: K Madzivha
A52: 41 | B52: ASA0375 | C52: Cabinets Systems | D52: Icon Business Furniture | E52: 2019-10-19 | G52: D Mamaregane | H52: =[1]Sheet1!$H$95 -> 212 | I52: 2020 | L52: 3598.35 | M52: Good | O52: K Madzivha
A53: 42 | B53: ASA0380 | C53: Cabinets Systems | D53: Icon Business Furniture | E53: 2019-10-19 | G53: HR | H53: =[1]Sheet1!$H$100 -> 212 | I53: 2020 | L53: 3598.35 | M53: Good | O53: K Madzivha
A54: 43 | B54: ASA0382 | C54: Cabinets Systems | D54: Icon Business Furniture | E54: 2019-10-19 | G54: =[1]Sheet1!$I$102 -> T Mtolo | H54: =[1]Sheet1!$H$102 -> 214 | I54: 2020 | L54: 3598.35 | M54: Good | O54: K Madzivha
A55: 44 | B55: ASA0387 | C55: Cabinets Systems | D55: Icon Business Furniture | E55: 2019-10-19 | G55: =[1]Sheet1!$I$107 -> T Mtolo | H55: =[1]Sheet1!$H$107 -> 214 | I55: 2020 | L55: 3598.35 | M55: Good | O55: K Madzivha
A56: 45 | B56: ASA0390 | C56: Cabinets Systems | D56: Icon Business Furniture | E56: 2019-10-19 | G56: =[1]Sheet1!I110 -> J Odhiambo | H56: =[1]Sheet1!H110 -> 216 | I56: 2020 | L56: 3598.35 | M56: Good | O56: K Madzivha
A57: 46 | B57: ASA0391 | C57: Cabinets Systems | D57: Icon Business Furniture | E57: 2019-10-19 | G57: =[1]Sheet1!I111 -> J Odhiambo | H57: =[1]Sheet1!H111 -> 216 | I57: 2020 | L57: 3598.35 | M57: Good | O57: K Madzivha
A58: 47 | B58: ASA0405 | C58: Cabinets Systems | D58: Icon Business Furniture | E58: 2019-10-19 | G58: K Khomani | H58: =[1]Sheet1!H125 -> 217 | I58: 2020 | L58: 3598.35 | M58: Good | O58: K Madzivha
A59: 48 | B59: ASA0406 | C59: Cabinets Systems | D59: Icon Business Furniture | E59: 2019-10-19 | G59: L Mafolo | H59: =[1]Sheet1!H126 -> 217 | I59: 2020 | L59: 3598.35 | M59: Good | O59: K Madzivha
A60: 49 | B60: ASA0420 | C60: Cabinets Systems | D60: Icon Business Furniture | E60: 2019-10-19 | G60: =[1]Sheet1!I140 -> R Somanje | H60: =[1]Sheet1!H140 -> 218 | I60: 2020 | L60: 3598.35 | M60: Good | O60: K Madzivha
A61: 50 | B61: ASA0421 | C61: Cabinets Systems | D61: Icon Business Furniture | E61: 2019-10-19 | G61: =[1]Sheet1!I141 -> R Somanje | H61: =[1]Sheet1!H141 -> 218 | I61: 2020 | L61: 3598.35 | M61: Good | O61: K Madzivha
A62: 51 | B62: ASA0422 | C62: Cabinets Systems | D62: Icon Business Furniture | E62: 2019-10-19 | G62: =[1]Sheet1!I142 -> R Somanje | H62: =[1]Sheet1!H142 -> 218 | I62: 2020 | L62: 3598.35 | M62: Good | O62: K Madzivha
A63: 52 | B63: ASA0431 | C63: Cabinets Systems | D63: Icon Business Furniture | E63: 2019-10-19 | G63: =[1]Sheet1!I150 -> M Mabuse | H63: =[1]Sheet1!H150 -> 224 | I63: 2020 | L63: 3598.35 | M63: Good | O63: K Madzivha
A64: 53 | B64: ASA0432 | C64: Cabinets Systems | D64: Icon Business Furniture | E64: 2019-10-19 | G64: =[1]Sheet1!I151 -> M Mabuse | H64: =[1]Sheet1!H151 -> 224 | I64: 2020 | L64: 3598.35 | M64: Good | O64: K Madzivha
A65: 54 | B65: ASA0434 | C65: Cabinets Systems | D65: Icon Business Furniture | E65: 2019-10-19 | G65: =[1]Sheet1!$I$153 -> C Morgan | H65: =[1]Sheet1!$H$153 -> 226 | I65: 2020 | L65: 3598.35 | M65: Good | O65: K Madzivha
A66: 55 | B66: ASA0439 | C66: Cabinets Systems | D66: Icon Business Furniture | E66: 2019-10-19 | G66: H Tladi | H66: =[1]Sheet1!$H$158 -> 229 | I66: 2020 | L66: 3598.35 | M66: Good | O66: K Madzivha
A67: 56 | B67: ASA0447 | C67: Cabinets Systems | D67: Icon Business Furniture | E67: 2019-10-19 | G67: =[1]Sheet1!$I$166 -> Z Nkosi | H67: =[1]Sheet1!$H$166 -> 233 | I67: 2020 | L67: 3598.35 | M67: Good | O67: K Madzivha
A68: 57 | B68: ASA0448 | C68: Cabinets Systems | D68: Icon Business Furniture | E68: 2019-10-19 | G68: =[1]Sheet1!$I$168 -> E Moloto | H68: =[1]Sheet1!$H$168 -> 233 | I68: 2020 | L68: 3598.35 | M68: Good | O68: K Madzivha
A69: 58 | B69: ASA0453 | C69: Cabinets Systems | D69: Icon Business Furniture | E69: 2019-10-19 | G69: =[1]Sheet1!$I$173 -> L Majoro | H69: =[1]Sheet1!$H$173 -> 237 | I69: 2020 | L69: 3598.35 | M69: Good | O69: K Madzivha
A70: 59 | B70: ASA0458 | C70: Cabinets Systems | D70: Icon Business Furniture | E70: 2019-10-19 | G70: =[1]Sheet1!$I$178 -> O Mvundlela | H70: =[1]Sheet1!$H$178 -> 245 | I70: 2020 | L70: 3598.35 | M70: Good | O70: K Madzivha
A71: 60 | B71: ASA0506 | C71: Cabinets Systems | D71: Icon Business Furniture | E71: 2019-10-19 | G71: =[1]Sheet1!$I$226 -> O Ramantsi | H71: =[1]Sheet1!$H$226 -> 241 | I71: 2020 | L71: 3598.35 | M71: Good | O71: K Madzivha
A72: 61 | B72: ASA0511 | C72: Cabinets Systems | D72: Icon Business Furniture | E72: 2019-10-19 | G72: =[1]Sheet1!I231 -> S Molete | H72: =[1]Sheet1!H231 -> 213 | I72: 2020 | L72: 3598.35 | M72: Good | O72: K Madzivha
A73: 62 | B73: ASA0512 | C73: Cabinets Systems | D73: Icon Business Furniture | E73: 2019-10-19 | G73: =[1]Sheet1!I232 -> S Molete | H73: =[1]Sheet1!H232 -> 213 | I73: 2020 | L73: 3598.35 | M73: Good | O73: K Madzivha
A74: 63 | B74: ASA0517 | C74: Cabinets Systems | D74: Icon Business Furniture | E74: 2019-10-19 | G74: =[1]Sheet1!$I$237 -> S Molete | H74: =[1]Sheet1!$H$237 -> 213 | I74: 2020 | L74: 3598.35 | M74: Good | O74: K Madzivha
A75: 64 | B75: ASA0545 | C75: Cabinets Systems | D75: Icon Business Furniture | E75: 2019-10-19 | G75: =[1]Sheet1!$I$265 -> L Magalo | H75: =[1]Sheet1!$H$265 -> 234 | I75: 2020 | L75: 3598.35 | M75: Good | O75: K Madzivha
A76: 65 | B76: ASA0551 | C76: Cabinets Systems | D76: Icon Business Furniture | E76: 2019-10-19 | G76: =[1]Sheet1!I271 -> L Magalo | H76: =[1]Sheet1!H271 -> 234 | I76: 2020 | L76: 3598.35 | M76: Good | O76: K Madzivha
A77: 66 | B77: ASA0552 | C77: Cabinets Systems | D77: Icon Business Furniture | E77: 2019-10-19 | G77: =[1]Sheet1!I272 -> L Magalo | H77: =[1]Sheet1!H272 -> 234 | I77: 2020 | L77: 3598.35 | M77: Good | O77: K Madzivha
A78: 67 | B78: ASA0562 | C78: Cabinets Systems | D78: Icon Business Furniture | E78: 2019-10-19 | G78: =[1]Sheet1!$I$277 -> S Ndamashe | H78: =[1]Sheet1!$H$277 -> 231 | I78: 2020 | L78: 3598.35 | M78: Good | O78: K Madzivha
A79: 68 | B79: ASA0569 | C79: Cabinets Systems | D79: Icon Business Furniture | E79: 2019-10-19 | G79: L Bhembe | H79: =[1]Sheet1!$H$283 -> 243 | I79: 2020 | L79: 3598.35 | M79: Good | O79: K Madzivha
A80: 69 | B80: ASA0576 | C80: Cabinets Systems | D80: Icon Business Furniture | E80: 2019-10-19 | G80: M Mahlaule | H80: =[1]Sheet1!$H$290 -> 239 | I80: 2020 | L80: 3598.35 | M80: Good | O80: K Madzivha
A81: 70 | B81: ASA0583 | C81: Cabinets Systems | D81: Icon Business Furniture | E81: 2019-10-19 | G81: =[1]Sheet1!$I$297 -> L Montoedi | H81: =[1]Sheet1!$H$297 -> 228 | I81: 2020 | L81: 3598.35 | M81: Good | O81: K Madzivha
A82: 71 | B82: ASA0587 | C82: Cabinets Systems | D82: Icon Business Furniture | E82: 2019-10-19 | G82: =[1]Sheet1!$I$301 -> L Montoedi | H82: =[1]Sheet1!$H$301 -> 228 | I82: 2020 | L82: 3598.35 | M82: Good | O82: K Madzivha
A83: 72 | B83: ASA0589 | C83: Cabinets Systems | D83: Icon Business Furniture | E83: 2019-10-19 | G83: =[1]Sheet1!$I$303 -> L Montoedi | H83: =[1]Sheet1!$H$303 -> 228 | I83: 2020 | L83: 3598.35 | M83: Good | O83: K Madzivha
A84: 73 | C84: Corporate Connector | D84: Icon Business Furniture | E84: 2019-10-19 | G84: SCM | H84: 222 | I84: 2020 | L84: =1758.35/2 -> 879.18 | M84: Good | O84: K Madzivha
A85: 74 | C85: Corporate Connector | D85: Icon Business Furniture | E85: 2019-10-19 | G85: SCM | H85: 222 | I85: 2020 | L85: 879.17 | M85: Good | O85: K Madzivha
A86: 75 | B86: ASA1254 | C86: Seagate Back up Storage | D86: Esizwe Group | E86: 2019-11-19 | G86: ICT(Server) | H86: 243 | I86: 2020 | L86: =3447.7/2 -> 1723.85 | M86: Good | O86: K Madzivha
A87: 76 | C87: Seagate Back up Storage | D87: Esizwe Group | E87: 2019-11-19 | G87: ICT | H87: 243 | I87: 2020 | L87: =3447.7/2 -> 1723.85 | M87: Good | O87: K Madzivha
A88: 77 | B88: =[1]Sheet1!$B$309 -> ASA0595 | C88: Pigeon Hole Unit | D88: Icon Business Furniture | E88: 2019-10-19 | G88: Printer room | H88: =[1]Sheet1!$H$309 -> 249 | I88: 2020 | L88: =6198.5/2 -> 3099.25 | M88: Good | O88: K Madzivha
A89: 78 | B89: =[1]Sheet1!$B$315 -> ASA0601 | C89: Pigeon Hole Unit | D89: Icon Business Furniture | E89: 2019-10-19 | G89: Printer room | H89: =[1]Sheet1!$H$315 -> 206 | I89: 2020 | L89: =6198.5/2 -> 3099.25 | M89: Good | O89: K Madzivha
A90: 79 | B90: =[1]Sheet1!$B$64 -> ASA0344 | C90: Credenza Meeting room | D90: Icon Business Furniture | E90: 2019-10-19 | G90: =[1]Sheet1!$I$64 -> Small Boardroom | H90: =[1]Sheet1!$H$64 -> 204 | I90: 2020 | L90: =12966.25/5 -> 2593.25 | M90: Good | O90: K Madzivha
A91: 80 | B91: =[1]Sheet1!B68 -> ASA0348 | C91: Credenza Meeting room | D91: Icon Business Furniture | E91: 2019-10-19 | G91: =[1]Sheet1!I68 -> Printer room | H91: =[1]Sheet1!H68 -> 249 | I91: 2020 | L91: =5639.6/2 -> 2819.8 | M91: Good | O91: K Madzivha
A92: 81 | B92: =[1]Sheet1!B69 -> ASA0349 | C92: Credenza Meeting room | D92: Icon Business Furniture | E92: 2019-10-19 | G92: =[1]Sheet1!I69 -> Printer room | H92: =[1]Sheet1!H69 -> 206 | I92: 2020 | L92: =5639.6/2 -> 2819.8 | M92: Good | O92: K Madzivha
A93: 82 | B93: =[1]Sheet1!$B$118 -> ASA0398 | C93: Credenza Meeting room | D93: Icon Business Furniture | E93: 2019-10-19 | G93: D Naiker | H93: =[1]Sheet1!$H$118 -> 219 | I93: 2020 | L93: =12966.25/5 -> 2593.25 | M93: Good | O93: K Madzivha
A94: 83 | B94: =[1]Sheet1!B185 -> ASA0464 | C94: Credenza Meeting room | D94: Icon Business Furniture | E94: 2019-10-19 | G94: =[1]Sheet1!I185 -> Main Boardroom | H94: =[1]Sheet1!H185 -> 242 | I94: 2020 | L94: 2593.25 | M94: Good | O94: K Madzivha
A95: 84 | B95: =[1]Sheet1!B186 -> ASA0465 | C95: Credenza Meeting room | D95: Icon Business Furniture | E95: 2019-10-19 | G95: =[1]Sheet1!I186 -> Main Boardroom | H95: =[1]Sheet1!H186 -> 242 | I95: 2020 | L95: 2593.25 | M95: Good | O95: K Madzivha
A96: 85 | B96: =[1]Sheet1!B187 -> ASA0466 | C96: Credenza Meeting room | D96: Icon Business Furniture | E96: 2019-10-19 | G96: =[1]Sheet1!I187 -> Main Boardroom | H96: =[1]Sheet1!H187 -> 242 | I96: 2020 | L96: 2593.25 | M96: Good | O96: K Madzivha
A97: 86 | B97: ASA0528 | C97: Bar Fridge | D97: Icon Business Furniture | E97: 2019-10-19 | G97: Canteen | I97: 2020 | L97: 2566.8 | M97: Good | O97: K Madzivha
A98: 87 | B98: =[1]Sheet1!$B$242 -> ASA0522 | C98: All purpose Table | D98: Icon Business Furniture | E98: 2019-10-19 | G98: =[1]Sheet1!$I$242 -> Canteen | I98: 2020 | L98: =10567.35/3 -> 3522.45 | M98: Good | O98: K Madzivha
A99: 88 | B99: =[1]Sheet1!B252 -> ASA0532 | C99: All purpose Table | D99: Icon Business Furniture | E99: 2019-10-19 | G99: =[1]Sheet1!I252 -> Kitchen | H99: 251 | I99: 2020 | L99: =10567.35/3 -> 3522.45 | M99: Good | O99: K Madzivha
A100: 89 | B100: =[1]Sheet1!B253 -> ASA0533 | C100: All purpose Table | D100: Icon Business Furniture | E100: 2019-10-19 | G100: =[1]Sheet1!I253 -> Kitchen | H100: 251 | I100: 2020 | L100: 3522.45 | M100: Good | O100: K Madzivha
A101: 90 | B101: =[1]Sheet1!B243 -> ASA0523 | C101: =[1]Sheet1!C243 -> Canteen Table | D101: Icon Business Furniture | E101: 2019-10-19 | G101: Canteen | I101: 2020 | L101: =25647.3/7 -> 3663.9 | M101: Good | O101: K Madzivha
A102: 91 | B102: =[1]Sheet1!B244 -> ASA0524 | C102: =[1]Sheet1!C244 -> Canteen Table | D102: Icon Business Furniture | E102: 2019-10-19 | G102: Canteen | I102: 2020 | L102: =25647.3/7 -> 3663.9 | M102: Good | O102: K Madzivha
A103: 92 | B103: =[1]Sheet1!B245 -> ASA0525 | C103: =[1]Sheet1!C245 -> Canteen Table | D103: Icon Business Furniture | E103: 2019-10-19 | G103: Canteen | I103: 2020 | L103: 3663.9 | M103: Good | O103: K Madzivha
A104: 93 | B104: =[1]Sheet1!B246 -> ASA0526 | C104: =[1]Sheet1!C246 -> Canteen Table | D104: Icon Business Furniture | E104: 2019-10-19 | G104: Canteen | I104: 2020 | L104: 3663.9 | M104: Good | O104: K Madzivha
A105: 94 | B105: =[1]Sheet1!B247 -> ASA0527 | C105: =[1]Sheet1!C247 -> Canteen Table | D105: Icon Business Furniture | E105: 2019-10-19 | G105: Canteen | I105: 2020 | L105: 3663.9 | M105: Good | O105: K Madzivha
A106: 95 | B106: =[1]Sheet1!B249 -> ASA0529 | C106: =[1]Sheet1!C249 -> Canteen Table | D106: Icon Business Furniture | E106: 2019-10-19 | G106: Canteen | I106: 2020 | L106: 3663.9 | M106: Good | O106: K Madzivha
A107: 96 | B107: =[1]Sheet1!B250 -> ASA0530 | C107: =[1]Sheet1!C250 -> Canteen Table | D107: Icon Business Furniture | E107: 2019-10-19 | G107: Canteen | I107: 2020 | L107: 3663.9 | M107: Good | O107: K Madzivha
A108: 97 | B108: =[1]Sheet1!B310 -> ASA0596 | C108: Boardroom Table Extension | D108: Icon Business Furniture | E108: 2019-10-19 | G108: Main Boardroom | H108: 242 | I108: 2020 | L108: =4577/3 -> 1525.666667 | M108: Good | O108: K Madzivha
A109: 98 | B109: =[1]Sheet1!B311 -> ASA0597 | C109: Boardroom Table Extension | D109: Icon Business Furniture | E109: 2019-10-19 | G109: Main Boardroom | H109: 242 | I109: 2020 | L109: =4577/3 -> 1525.666667 | M109: Good | O109: K Madzivha
A110: 99 | B110: =[1]Sheet1!$B$313 -> ASA0599 | C110: Boardroom Table Extension | D110: Icon Business Furniture | E110: 2019-10-19 | G110: Main Boardroom | H110: 242 | I110: 2020 | L110: 1525.666667 | M110: Good | O110: K Madzivha
A111: 100 | C111: Interconnecting Cable 1m | D111: Icon Business Furniture | E111: 2019-10-19 | G111: SCM | H111: 222 | I111: 2020 | L111: =1380/4 -> 345 | M111: Good | O111: K Madzivha
A112: 101 | C112: Interconnecting Cable 1m | D112: Icon Business Furniture | E112: 2019-10-19 | G112: SCM | H112: 222 | I112: 2020 | L112: =1380/4 -> 345 | M112: Good | O112: K Madzivha
A113: 102 | C113: Interconnecting Cable 1m | D113: Icon Business Furniture | E113: 2019-10-19 | G113: SCM | H113: 222 | I113: 2020 | L113: 345 | M113: Good | O113: K Madzivha
A114: 103 | C114: Interconnecting Cable 1m | D114: Icon Business Furniture | E114: 2019-10-19 | G114: SCM | H114: 222 | I114: 2020 | L114: 345 | M114: Good | O114: K Madzivha
A115: 104 | C115: Interconnecting Cable 3m | D115: Icon Business Furniture | E115: 2019-10-19 | G115: SCM | H115: 222 | I115: 2020 | L115: =874/2 -> 437 | M115: Good | O115: K Madzivha
A116: 105 | C116: Interconnecting Cable 3m | D116: Icon Business Furniture | E116: 2019-10-19 | G116: SCM | H116: 222 | I116: 2020 | L116: =874/2 -> 437 | M116: Good | O116: K Madzivha
A117: 106 | C117: Power Cable 5m | D117: Icon Business Furniture | E117: 2019-10-19 | G117: SCM | H117: 222 | I117: 2020 | L117: =1023.5/2 -> 511.75 | M117: Good | O117: K Madzivha
A118: 107 | C118: Power Cable 5m | D118: Icon Business Furniture | E118: 2019-10-19 | G118: SCM | H118: 222 | I118: 2020 | L118: =1023.5/2 -> 511.75 | M118: Good | O118: K Madzivha
A119: 108 | B119: =[1]Sheet1!$B$254 -> ASA0534 | C119: =[1]Sheet1!$C$254 -> Barstool | D119: Icon Business Furniture | E119: 2019-10-19 | G119: =[1]Sheet1!$I$254 -> Kitchen | H119: 251 | I119: 2020 | L119: =8010.9/6 -> 1335.15 | M119: Good | O119: K Madzivha
A120: 109 | B120: =[1]Sheet1!B256 -> ASA0536 | C120: =[1]Sheet1!C256 -> Barstool | D120: Icon Business Furniture | E120: 2019-10-19 | G120: =[1]Sheet1!I256 -> Kitchen | H120: 251 | I120: 2020 | L120: =8010.9/6 -> 1335.15 | M120: Good | O120: K Madzivha
A121: 110 | B121: =[1]Sheet1!B257 -> ASA0537 | C121: =[1]Sheet1!C257 -> Barstool | D121: Icon Business Furniture | E121: 2019-10-19 | G121: =[1]Sheet1!I257 -> Kitchen | H121: 251 | I121: 2020 | L121: 1335.15 | M121: Good | O121: K Madzivha
A122: 111 | B122: =[1]Sheet1!B258 -> ASA0538 | C122: =[1]Sheet1!C258 -> Barstool | D122: Icon Business Furniture | E122: 2019-10-19 | G122: =[1]Sheet1!I258 -> Kitchen | H122: 251 | I122: 2020 | L122: 1335.15 | M122: Good | O122: K Madzivha
A123: 112 | B123: =[1]Sheet1!B307 -> ASA0593 | C123: =[1]Sheet1!C307 -> Barstool | D123: Icon Business Furniture | E123: 2019-10-19 | G123: =[1]Sheet1!I307 -> Canteen | I123: 2020 | L123: 1335.15 | M123: Good | O123: K Madzivha
A124: 113 | B124: =[1]Sheet1!B308 -> ASA0594 | C124: =[1]Sheet1!C308 -> Barstool | D124: Icon Business Furniture | E124: 2019-10-19 | G124: =[1]Sheet1!I308 -> Canteen | I124: 2020 | L124: 1335.15 | M124: Good | O124: K Madzivha
A125: 114 | B125: ASA0467 | C125: Crisp Arm Chair | D125: Icon Business Furniture | E125: 2019-10-19 | G125: Canteen | H125: 242 | I125: 2020 | L125: =13202/7 -> 1886 | M125: Good | O125: K Madzivha
A126: 115 | B126: ASA0468 | C126: Crisp Arm Chair | D126: Icon Business Furniture | E126: 2019-10-19 | G126: Canteen | H126: 242 | I126: 2020 | L126: =13202/7 -> 1886 | M126: Good | O126: K Madzivha
A127: 116 | B127: ASA0469 | C127: Crisp Arm Chair | D127: Icon Business Furniture | E127: 2019-10-19 | G127: Canteen | H127: 242 | I127: 2020 | L127: 1886 | M127: Good | O127: K Madzivha
A128: 117 | B128: ASA0470 | C128: Crisp Arm Chair | D128: Icon Business Furniture | E128: 2019-10-19 | G128: Canteen | H128: 242 | I128: 2020 | L128: 1886 | M128: Good | O128: K Madzivha
A129: 118 | B129: ASA0471 | C129: Crisp Arm Chair | D129: Icon Business Furniture | E129: 2019-10-19 | G129: Canteen | H129: 242 | I129: 2020 | L129: 1886 | M129: Good | O129: K Madzivha
A130: 119 | B130: ASA0472 | C130: Crisp Arm Chair | D130: Icon Business Furniture | E130: 2019-10-19 | G130: Canteen | H130: 242 | I130: 2020 | L130: 1886 | M130: Good | O130: K Madzivha
A131: 120 | B131: ASA0473 | C131: Crisp Arm Chair | D131: Icon Business Furniture | E131: 2019-10-19 | G131: Canteen | H131: 242 | I131: 2020 | L131: 1886 | M131: Good | O131: K Madzivha
A132: 121 | B132: ASA0474 | C132: Crisp Arm Chair | D132: Icon Business Furniture | E132: 2019-10-19 | G132: Canteen | H132: 242 | I132: 2020 | L132: 1886 | M132: Good | O132: K Madzivha
A133: 122 | B133: ASA0475 | C133: Crisp Arm Chair | D133: Icon Business Furniture | E133: 2019-10-19 | G133: Canteen | H133: 242 | I133: 2020 | L133: 1886 | M133: Good | O133: K Madzivha
A134: 123 | B134: ASA0476 | C134: Crisp Arm Chair | D134: Icon Business Furniture | E134: 2019-10-19 | G134: Canteen | H134: 242 | I134: 2020 | L134: 1886 | M134: Good | O134: K Madzivha
A135: 124 | B135: ASA0477 | C135: Crisp Arm Chair | D135: Icon Business Furniture | E135: 2019-10-19 | G135: Canteen | H135: 242 | I135: 2020 | L135: 1886 | M135: Good | O135: K Madzivha
A136: 125 | B136: ASA0478 | C136: Crisp Arm Chair | D136: Icon Business Furniture | E136: 2019-10-19 | G136: Canteen | H136: 242 | I136: 2020 | L136: 1886 | M136: Good | O136: K Madzivha
A137: 126 | B137: ASA0479 | C137: Crisp Arm Chair | D137: Icon Business Furniture | E137: 2019-10-19 | G137: Canteen | H137: 242 | I137: 2020 | L137: 1886 | M137: Good | O137: K Madzivha
A138: 127 | B138: ASA0480 | C138: Crisp Arm Chair | D138: Icon Business Furniture | E138: 2019-10-19 | G138: Canteen | H138: 242 | I138: 2020 | L138: 1886 | M138: Good | O138: K Madzivha
A139: 128 | B139: ASA0481 | C139: Crisp Arm Chair | D139: Icon Business Furniture | E139: 2019-10-19 | G139: Canteen | H139: 242 | I139: 2020 | L139: 1886 | M139: Good | O139: K Madzivha
A140: 129 | B140: ASA0482 | C140: Crisp Arm Chair | D140: Icon Business Furniture | E140: 2019-10-19 | G140: Canteen | H140: 242 | I140: 2020 | L140: 1886 | M140: Good | O140: K Madzivha
A141: 130 | B141: ASA0483 | C141: Crisp Arm Chair | D141: Icon Business Furniture | E141: 2019-10-19 | G141: Canteen | H141: 242 | I141: 2020 | L141: 1886 | M141: Good | O141: K Madzivha
A142: 131 | B142: ASA0484 | C142: Crisp Arm Chair | D142: Icon Business Furniture | E142: 2019-10-19 | G142: Canteen | H142: 242 | I142: 2020 | L142: 1886 | M142: Good | O142: K Madzivha
A143: 132 | B143: ASA0485 | C143: Crisp Arm Chair | D143: Icon Business Furniture | E143: 2019-10-19 | G143: Canteen | H143: 242 | I143: 2020 | L143: 1886 | M143: Good | O143: K Madzivha
A144: 133 | B144: ASA0486 | C144: Crisp Arm Chair | D144: Icon Business Furniture | E144: 2019-10-19 | G144: Canteen | H144: 242 | I144: 2020 | L144: 1886 | M144: Good | O144: K Madzivha
A145: 134 | B145: ASA0487 | C145: Crisp Arm Chair | D145: Icon Business Furniture | E145: 2019-10-19 | G145: Canteen | H145: 242 | I145: 2020 | L145: 1886 | M145: Good | O145: K Madzivha
A146: 135 | B146: ASA0488 | C146: Crisp Arm Chair | D146: Icon Business Furniture | E146: 2019-10-19 | G146: Canteen | H146: 242 | I146: 2020 | L146: 1886 | M146: Good | O146: K Madzivha
A147: 136 | B147: ASA0489 | C147: Crisp Arm Chair | D147: Icon Business Furniture | E147: 2019-10-19 | G147: Canteen | H147: 242 | I147: 2020 | L147: 1886 | M147: Good | O147: K Madzivha
A148: 137 | B148: ASA0490 | C148: Crisp Arm Chair | D148: Icon Business Furniture | E148: 2019-10-19 | G148: Canteen | H148: 242 | I148: 2020 | L148: 1886 | M148: Good | O148: K Madzivha
A149: 138 | B149: ASA0491 | C149: Crisp Arm Chair | D149: Icon Business Furniture | E149: 2019-10-19 | G149: Canteen | H149: 242 | I149: 2020 | L149: 1886 | M149: Good | O149: K Madzivha
A150: 139 | B150: ASA0493 | C150: Crisp Arm Chair | D150: Icon Business Furniture | E150: 2019-10-19 | G150: Canteen | I150: 2020 | L150: 1886 | M150: Good | O150: K Madzivha
A151: 140 | B151: ASA0494 | C151: Crisp Arm Chair | D151: Icon Business Furniture | E151: 2019-10-19 | G151: Canteen | I151: 2020 | L151: 1886 | M151: Good | O151: K Madzivha
A152: 141 | B152: ASA0495 | C152: Crisp Arm Chair | D152: Icon Business Furniture | E152: 2019-10-19 | G152: Small Boardroom | H152: 204 | I152: 2020 | L152: 1886 | M152: Good | O152: K Madzivha
A153: 142 | B153: ASA0496 | C153: Crisp Arm Chair | D153: Icon Business Furniture | E153: 2019-10-19 | G153: Small Boardroom | H153: 204 | I153: 2020 | L153: 1886 | M153: Good | O153: K Madzivha
A154: 143 | B154: ASA0497 | C154: Crisp Arm Chair | D154: Icon Business Furniture | E154: 2019-10-19 | G154: Canteen | I154: 2020 | L154: 1886 | M154: Good | O154: K Madzivha
A155: 144 | B155: ASA0498 | C155: Crisp Arm Chair | D155: Icon Business Furniture | E155: 2019-10-19 | G155: Small Boardroom | H155: 204 | I155: 2020 | L155: 1886 | M155: Good | O155: K Madzivha
A156: 145 | B156: ASA0499 | C156: Crisp Arm Chair | D156: Icon Business Furniture | E156: 2019-10-19 | G156: Canteen | I156: 2020 | L156: 1886 | M156: Good | O156: K Madzivha
A157: 146 | C157: Corporate Connector | D157: Icon Business Furniture | E157: 2019-10-19 | G157: SCM | H157: 222 | I157: 2020 | L157: =77367.4/41 -> 1887.009756 | M157: Good | O157: K Madzivha
A158: 147 | C158: Corporate Connector | D158: Icon Business Furniture | E158: 2019-10-19 | G158: SCM | H158: 222 | I158: 2020 | L158: =77367.4/41 -> 1887.009756 | M158: Good | O158: K Madzivha
A159: 148 | C159: Corporate Connector | D159: Icon Business Furniture | E159: 2019-10-19 | G159: SCM | H159: 222 | I159: 2020 | L159: 1887.009756 | M159: Good | O159: K Madzivha
A160: 149 | C160: Corporate Connector | D160: Icon Business Furniture | E160: 2019-10-19 | G160: SCM | H160: 222 | I160: 2020 | L160: 1887.009756 | M160: Good | O160: K Madzivha
A161: 150 | C161: Corporate Connector | D161: Icon Business Furniture | E161: 2019-10-19 | G161: SCM | H161: 222 | I161: 2020 | L161: 1887.009756 | M161: Good | O161: K Madzivha
A162: 151 | C162: Corporate Connector | D162: Icon Business Furniture | E162: 2019-10-19 | G162: SCM | H162: 222 | I162: 2020 | L162: 1887.009756 | M162: Good | O162: K Madzivha
A163: 152 | C163: Corporate Connector | D163: Icon Business Furniture | E163: 2019-10-19 | G163: SCM | H163: 222 | I163: 2020 | L163: 1887.009756 | M163: Good | O163: K Madzivha
A164: 153 | C164: Corporate Connector | D164: Icon Business Furniture | E164: 2019-10-19 | G164: SCM | H164: 222 | I164: 2020 | L164: 1887.009756 | M164: Good | O164: K Madzivha
A165: 154 | C165: Corporate Connector | D165: Icon Business Furniture | E165: 2019-10-19 | G165: SCM | H165: 222 | I165: 2020 | L165: 1887.009756 | M165: Good | O165: K Madzivha
A166: 155 | C166: Corporate Connector | D166: Icon Business Furniture | E166: 2019-10-19 | G166: SCM | H166: 222 | I166: 2020 | L166: 1887.009756 | M166: Good | O166: K Madzivha
A167: 156 | C167: Corporate Connector | D167: Icon Business Furniture | E167: 2019-10-19 | G167: SCM | H167: 222 | I167: 2020 | L167: 1887.009756 | M167: Good | O167: K Madzivha
A168: 157 | C168: Corporate Connector | D168: Icon Business Furniture | E168: 2019-10-19 | G168: SCM | H168: 222 | I168: 2020 | L168: 1887.009756 | M168: Good | O168: K Madzivha
A169: 158 | C169: Corporate Connector | D169: Icon Business Furniture | E169: 2019-10-19 | G169: SCM | H169: 222 | I169: 2020 | L169: 1887.009756 | M169: Good | O169: K Madzivha
A170: 159 | C170: Corporate Connector | D170: Icon Business Furniture | E170: 2019-10-19 | G170: SCM | H170: 222 | I170: 2020 | L170: 1887.009756 | M170: Good | O170: K Madzivha
A171: 160 | C171: Corporate Connector | D171: Icon Business Furniture | E171: 2019-10-19 | G171: SCM | H171: 222 | I171: 2020 | L171: 1887.009756 | M171: Good | O171: K Madzivha
A172: 161 | C172: Corporate Connector | D172: Icon Business Furniture | E172: 2019-10-19 | G172: SCM | H172: 222 | I172: 2020 | L172: 1887.009756 | M172: Good | O172: K Madzivha
A173: 162 | C173: Corporate Connector | D173: Icon Business Furniture | E173: 2019-10-19 | G173: SCM | H173: 222 | I173: 2020 | L173: 1887.009756 | M173: Good | O173: K Madzivha
A174: 163 | C174: Corporate Connector | D174: Icon Business Furniture | E174: 2019-10-19 | G174: SCM | H174: 222 | I174: 2020 | L174: 1887.009756 | M174: Good | O174: K Madzivha
A175: 164 | C175: Corporate Connector | D175: Icon Business Furniture | E175: 2019-10-19 | G175: SCM | H175: 222 | I175: 2020 | L175: 1887.009756 | M175: Good | O175: K Madzivha
A176: 165 | C176: Corporate Connector | D176: Icon Business Furniture | E176: 2019-10-19 | G176: SCM | H176: 222 | I176: 2020 | L176: 1887.009756 | M176: Good | O176: K Madzivha
A177: 166 | C177: Corporate Connector | D177: Icon Business Furniture | E177: 2019-10-19 | G177: SCM | H177: 222 | I177: 2020 | L177: 1887.009756 | M177: Good | O177: K Madzivha
A178: 167 | C178: Corporate Connector | D178: Icon Business Furniture | E178: 2019-10-19 | G178: SCM | H178: 222 | I178: 2020 | L178: 1887.009756 | M178: Good | O178: K Madzivha
A179: 168 | C179: Corporate Connector | D179: Icon Business Furniture | E179: 2019-10-19 | G179: SCM | H179: 222 | I179: 2020 | L179: 1887.009756 | M179: Good | O179: K Madzivha
A180: 169 | C180: Corporate Connector | D180: Icon Business Furniture | E180: 2019-10-19 | G180: SCM | H180: 222 | I180: 2020 | L180: 1887.009756 | M180: Good | O180: K Madzivha
A181: 170 | C181: Corporate Connector | D181: Icon Business Furniture | E181: 2019-10-19 | G181: SCM | H181: 222 | I181: 2020 | L181: 1887.009756 | M181: Good | O181: K Madzivha
A182: 171 | C182: Corporate Connector | D182: Icon Business Furniture | E182: 2019-10-19 | G182: SCM | H182: 222 | I182: 2020 | L182: 1887.009756 | M182: Good | O182: K Madzivha
A183: 172 | C183: Corporate Connector | D183: Icon Business Furniture | E183: 2019-10-19 | G183: SCM | H183: 222 | I183: 2020 | L183: 1887.009756 | M183: Good | O183: K Madzivha
A184: 173 | C184: Corporate Connector | D184: Icon Business Furniture | E184: 2019-10-19 | G184: SCM | H184: 222 | I184: 2020 | L184: 1887.009756 | M184: Good | O184: K Madzivha
A185: 174 | C185: Corporate Connector | D185: Icon Business Furniture | E185: 2019-10-19 | G185: SCM | H185: 222 | I185: 2020 | L185: 1887.009756 | M185: Good | O185: K Madzivha
A186: 175 | C186: Corporate Connector | D186: Icon Business Furniture | E186: 2019-10-19 | G186: SCM | H186: 222 | I186: 2020 | L186: 1887.009756 | M186: Good | O186: K Madzivha
A187: 176 | C187: Corporate Connector | D187: Icon Business Furniture | E187: 2019-10-19 | G187: SCM | H187: 222 | I187: 2020 | L187: 1887.009756 | M187: Good | O187: K Madzivha
A188: 177 | C188: Corporate Connector | D188: Icon Business Furniture | E188: 2019-10-19 | G188: SCM | H188: 222 | I188: 2020 | L188: 1887.009756 | M188: Good | O188: K Madzivha
A189: 178 | C189: Corporate Connector | D189: Icon Business Furniture | E189: 2019-10-19 | G189: SCM | H189: 222 | I189: 2020 | L189: 1887.009756 | M189: Good | O189: K Madzivha
A190: 179 | C190: Corporate Connector | D190: Icon Business Furniture | E190: 2019-10-19 | G190: SCM | H190: 222 | I190: 2020 | L190: 1887.009756 | M190: Good | O190: K Madzivha
A191: 180 | C191: Corporate Connector | D191: Icon Business Furniture | E191: 2019-10-19 | G191: SCM | H191: 222 | I191: 2020 | L191: 1887.009756 | M191: Good | O191: K Madzivha
A192: 181 | C192: Corporate Connector | D192: Icon Business Furniture | E192: 2019-10-19 | G192: SCM | H192: 222 | I192: 2020 | L192: 1887.009756 | M192: Good | O192: K Madzivha
A193: 182 | C193: Corporate Connector | D193: Icon Business Furniture | E193: 2019-10-19 | G193: SCM | H193: 222 | I193: 2020 | L193: 1887.009756 | M193: Good | O193: K Madzivha
A194: 183 | C194: Corporate Connector | D194: Icon Business Furniture | E194: 2019-10-19 | G194: SCM | H194: 222 | I194: 2020 | L194: 1887.009756 | M194: Good | O194: K Madzivha
A195: 184 | C195: Corporate Connector | D195: Icon Business Furniture | E195: 2019-10-19 | G195: SCM | H195: 222 | I195: 2020 | L195: 1887.009756 | M195: Good | O195: K Madzivha
A196: 185 | C196: Corporate Connector | D196: Icon Business Furniture | E196: 2019-10-19 | G196: SCM | H196: 222 | I196: 2020 | L196: 1887.009756 | M196: Good | O196: K Madzivha
A197: 186 | C197: Corporate Connector | D197: Icon Business Furniture | E197: 2019-10-19 | G197: SCM | H197: 222 | I197: 2020 | L197: 1887.009756 | M197: Good | O197: K Madzivha
A198: 187 | B198: ASA0500 | C198: Crisp Visitors Arm Chair | D198: Icon Business Furniture | E198: 2019-10-19 | G198: Small Boardroom | H198: 202 | I198: 2020 | L198: 1886 | M198: Good | O198: K Madzivha
A199: 188 | B199: ASA0520 | C199: Crisp Visitors Arm Chair | D199: Icon Business Furniture | E199: 2019-10-19 | G199: Vacant | H199: 217 | I199: 2020 | L199: 1886 | M199: Good | O199: K Madzivha
A200: 189 | B200: ASA0521 | C200: Crisp Visitors Arm Chair | D200: Icon Business Furniture | E200: 2019-10-19 | G200: Canteen | I200: 2020 | L200: 1886 | M200: Good | O200: K Madzivha
A201: 190 | B201: ASA0531 | C201: Crisp Visitors Arm Chair | D201: Icon Business Furniture | E201: 2019-10-19 | G201: Small Boardroom | H201: 204 | I201: 2020 | L201: 1886 | M201: Good | O201: K Madzivha
A202: 191 | B202: ASA0593 | C202: Crisp Visitors Arm Chair | D202: Icon Business Furniture | E202: 2019-10-19 | G202: Canteen | I202: 2020 | L202: 1886 | M202: Good | O202: K Madzivha
A203: 192 | B203: ASA0594 | C203: Crisp Visitors Arm Chair | D203: Icon Business Furniture | E203: 2019-10-19 | G203: Canteen | I203: 2020 | L203: 1886 | M203: Good | O203: K Madzivha
A204: 193 | B204: ASA0553 | C204: Crisp Visitors Arm Chair | D204: Icon Business Furniture | E204: 2019-10-19 | G204: Z Thusi | H204: 232 | I204: 2020 | L204: 1886 | M204: Good | O204: K Madzivha
A205: 194 | B205: ASA0554 | C205: Crisp Visitors Arm Chair | D205: Icon Business Furniture | E205: 2019-10-19 | G205: Z Thusi | H205: 232 | I205: 2020 | L205: 1886 | M205: Good | O205: K Madzivha
A206: 195 | B206: ASA0410 | C206: Crisp Visitors Arm Chair | D206: Icon Business Furniture | E206: 2019-10-19 | G206: L Bhembe | H206: 243 | I206: 2020 | L206: 1886 | M206: Good | O206: K Madzivha
A207: 196 | B207: ASA0573 | C207: Crisp Visitors Arm Chair | D207: Icon Business Furniture | E207: 2019-10-19 | G207: L Bhembe | H207: 243 | I207: 2020 | L207: 1886 | M207: Good | O207: K Madzivha
A208: 197 | B208: ASA0579 | C208: Crisp Visitors Arm Chair | D208: Icon Business Furniture | E208: 2019-10-19 | G208: M Mahlaule | H208: 239 | I208: 2020 | L208: 1886 | M208: Good | O208: K Madzivha
A209: 198 | B209: ASA0580 | C209: Crisp Visitors Arm Chair | D209: Icon Business Furniture | E209: 2019-10-19 | G209: M Mahlaule | H209: 239 | I209: 2020 | L209: 1886 | M209: Good | O209: K Madzivha
... 120 more rows

Sheet 2020 2021 (hidden)
G4: 2020/2021
A10: 273 | B10: ASA1262 | C10: Microwave | D10: Insignia Consulting | E10: 2020-05-19 | G10: Canteen | I10: 2021 | L10: 2295 | M10: Good | O10: K Madzivha
A11: 274 | B11: ASA1263 | C11: Kettle | D11: Insignia Consulting | E11: 2020-05-19 | G11: Canteen | I11: 2021 | L11: 472 | M11: Good | O11: K Madzivha
A12: 275 | B12: ASA1201 | C12: ACTA High Chairs | D12: Icon Business Furniture | E12: 2021-02-04 | G12: Main Boardroom | H12: 242 | I12: 2021 | L12: =3655*1.15 -> 4203.25 | M12: Good | O12: K Madzivha
A13: 276 | B13: ASA1202 | C13: ACTA High Chairs | D13: Icon Business Furniture | E13: 2021-02-04 | G13: Main Boardroom | H13: 242 | I13: 2021 | L13: =3655*1.15 -> 4203.25 | M13: Good | O13: K Madzivha
A14: 277 | B14: ASA1203 | C14: ACTA High Chairs | D14: Icon Business Furniture | E14: 2021-02-04 | G14: Main Boardroom | H14: 242 | I14: 2021 | L14: 4203.25 | M14: Good | O14: K Madzivha
A15: 278 | B15: ASA1204 | C15: ACTA High Chairs | D15: Icon Business Furniture | E15: 2021-02-04 | G15: Main Boardroom | H15: 242 | I15: 2021 | L15: 4203.25 | M15: Good | O15: K Madzivha
A16: 279 | B16: ASA1205 | C16: ACTA High Chairs | D16: Icon Business Furniture | E16: 2021-02-04 | G16: Main Boardroom | H16: 242 | I16: 2021 | L16: 4203.25 | M16: Good | O16: K Madzivha
A17: 280 | B17: ASA1206 | C17: ACTA High Chairs | D17: Icon Business Furniture | E17: 2021-02-04 | G17: Main Boardroom | H17: 242 | I17: 2021 | L17: 4203.25 | M17: Good | O17: K Madzivha
A18: 281 | B18: ASA1207 | C18: ACTA High Chairs | D18: Icon Business Furniture | E18: 2021-02-04 | G18: Main Boardroom | H18: 242 | I18: 2021 | L18: 4203.25 | M18: Good | O18: K Madzivha
A19: 282 | B19: ASA1208 | C19: ACTA High Chairs | D19: Icon Business Furniture | E19: 2021-02-04 | G19: Main Boardroom | H19: 242 | I19: 2021 | L19: 4203.25 | M19: Good | O19: K Madzivha
A20: 283 | B20: ASA1209 | C20: ACTA High Chairs | D20: Icon Business Furniture | E20: 2021-02-04 | G20: Main Boardroom | H20: 242 | I20: 2021 | L20: 4203.25 | M20: Good | O20: K Madzivha
A21: 284 | B21: ASA1210 | C21: ACTA High Chairs | D21: Icon Business Furniture | E21: 2021-02-04 | G21: Main Boardroom | H21: 242 | I21: 2021 | L21: 4203.25 | M21: Good | O21: K Madzivha
A22: 285 | B22: ASA1211 | C22: ACTA High Chairs | D22: Icon Business Furniture | E22: 2021-02-04 | G22: Main Boardroom | H22: 242 | I22: 2021 | L22: 4203.25 | M22: Good | O22: K Madzivha
A23: 286 | B23: ASA1212 | C23: ACTA High Chairs | D23: Icon Business Furniture | E23: 2021-02-04 | G23: Main Boardroom | H23: 242 | I23: 2021 | L23: 4203.25 | M23: Good | O23: K Madzivha
A24: 287 | B24: ASA1213 | C24: ACTA High Chairs | D24: Icon Business Furniture | E24: 2021-02-04 | G24: Main Boardroom | H24: 242 | I24: 2021 | L24: 4203.25 | M24: Good | O24: K Madzivha
A25: 288 | B25: ASA1214 | C25: ACTA High Chairs | D25: Icon Business Furniture | E25: 2021-02-04 | G25: Main Boardroom | H25: 242 | I25: 2021 | L25: 4203.25 | M25: Good | O25: K Madzivha
A26: 289 | B26: ASA1215 | C26: ACTA High Chairs | D26: Icon Business Furniture | E26: 2021-02-04 | G26: Main Boardroom | H26: 242 | I26: 2021 | L26: 4203.25 | M26: Good | O26: K Madzivha
A27: 290 | B27: ASA1216 | C27: ACTA High Chairs | D27: Icon Business Furniture | E27: 2021-02-04 | G27: Main Boardroom | H27: 242 | I27: 2021 | L27: 4203.25 | M27: Good | O27: K Madzivha
A28: 291 | B28: ASA1217 | C28: ACTA High Chairs | D28: Icon Business Furniture | E28: 2021-02-04 | G28: Main Boardroom | H28: 242 | I28: 2021 | L28: 4203.25 | M28: Good | O28: K Madzivha
A29: 292 | B29: ASA1218 | C29: ACTA High Chairs | D29: Icon Business Furniture | E29: 2021-02-04 | G29: Main Boardroom | H29: 242 | I29: 2021 | L29: 4203.25 | M29: Good | O29: K Madzivha
A30: 293 | B30: ASA1219 | C30: ACTA High Chairs | D30: Icon Business Furniture | E30: 2021-02-04 | G30: Main Boardroom | H30: 242 | I30: 2021 | L30: 4203.25 | M30: Good | O30: K Madzivha
A31: 294 | B31: ASA1220 | C31: ACTA High Chairs | D31: Icon Business Furniture | E31: 2021-02-04 | G31: Main Boardroom | H31: 242 | I31: 2021 | L31: 4203.25 | M31: Good | O31: K Madzivha
A32: 295 | B32: ASA1221 | C32: ACTA High Chairs | D32: Icon Business Furniture | E32: 2021-02-04 | G32: Main Boardroom | H32: 242 | I32: 2021 | L32: 4203.25 | M32: Good | O32: K Madzivha
A33: 296 | B33: ASA1222 | C33: ACTA High Chairs | D33: Icon Business Furniture | E33: 2021-02-04 | G33: Main Boardroom | H33: 242 | I33: 2021 | L33: 4203.25 | M33: Good | O33: K Madzivha
A34: 297 | B34: ASA1223 | C34: ACTA High Chairs | D34: Icon Business Furniture | E34: 2021-02-04 | G34: Main Boardroom | H34: 242 | I34: 2021 | L34: 4203.25 | M34: Good | O34: K Madzivha
A35: 298 | B35: ASA1224 | C35: ACTA High Chairs | D35: Icon Business Furniture | E35: 2021-02-04 | G35: Main Boardroom | H35: 242 | I35: 2021 | L35: 4203.25 | M35: Good | O35: K Madzivha
A36: 299 | B36: ASA1225 | C36: ACTA High Chairs | D36: Icon Business Furniture | E36: 2021-02-04 | G36: Main Boardroom | H36: 242 | I36: 2021 | L36: 4203.25 | M36: Good | O36: K Madzivha
A37: 300 | B37: ASA1226 | C37: ACTA High Chairs | D37: Icon Business Furniture | E37: 2021-02-04 | G37: Main Boardroom | H37: 242 | I37: 2021 | L37: 4203.25 | M37: Good | O37: K Madzivha
A38: 301 | B38: ASA1227 | C38: ACTA High Chairs | D38: Icon Business Furniture | E38: 2021-02-04 | G38: Main Boardroom | H38: 242 | I38: 2021 | L38: 4203.25 | M38: Good | O38: K Madzivha
A39: 302 | B39: ASA1228 | C39: ACTA High Chairs | D39: Icon Business Furniture | E39: 2021-02-04 | G39: Main Boardroom | H39: 242 | I39: 2021 | L39: 4203.25 | M39: Good | O39: K Madzivha
A40: 303 | B40: ASA1229 | C40: ACTA Medium Chairs | D40: Icon Business Furniture | E40: 2021-02-04 | G40: R Somanje | H40: 218 | I40: 2021 | L40: =3290*1.15 -> 3783.5 | M40: Good | O40: K Madzivha
A41: 304 | B41: ASA1230 | C41: ACTA Medium Chairs | D41: Icon Business Furniture | E41: 2021-02-04 | G41: R Somanje | H41: 218 | I41: 2021 | L41: =3290*1.15 -> 3783.5 | M41: Good | O41: K Madzivha
A42: 311 | B42: ASA1241 | C42: ACTA High Chair | D42: Icon Business Furniture | E42: 2021-02-04 | G42: R Somanje | H42: 218 | I42: 2021 | L42: 4203.25 | M42: Good | O42: K Madzivha
A43: 312 | B43: ASA1247 | C43: ACTA High Chair | D43: Icon Business Furniture | E43: 2021-02-04 | G43: S Molete | H43: 213 | I43: 2021 | L43: 4203.25 | M43: Good | O43: K Madzivha
A44: 313 | B44: ASA1248 | C44: ACTA High Chair | D44: Icon Business Furniture | E44: 2021-02-04 | G44: J Odhiambo | H44: 216 | I44: 2021 | L44: 4203.25 | M44: Good | O44: K Madzivha
A45: 314 | B45: ASA1249 | C45: ACTA Medium Chair | D45: Icon Business Furniture | E45: 2021-02-04 | G45: J Odhiambo | H45: 216 | I45: 2021 | L45: 3783.5 | M45: Good | O45: K Madzivha
A46: 315 | B46: ASA1250 | C46: ACTA Medium Chair | D46: Icon Business Furniture | E46: 2021-02-04 | G46: J Odhiambo | H46: 216 | I46: 2021 | L46: 3783.5 | M46: Good | O46: K Madzivha
A47: 317 | B47: ASA1256 | C47: ACTA High Chair | D47: Icon Business Furniture | E47: 2021-02-04 | G47: L Magalo | H47: 234 | I47: 2021 | L47: 4203.25 | M47: Good | O47: K Madzivha
A48: 318 | B48: ASA1261 | C48: ACTA High Chair | D48: Icon Business Furniture | E48: 2021-02-04 | G48: D Naiker | H48: 219 | I48: 2021 | L48: 4203.25 | M48: Good | O48: K Madzivha
L49: =SUM(L12:L48)-L45-L46-L41-L40 -> 138707.25 | O49: =L49/72 -> 1,926.49
O50: =O49*2 -> 3,852.98

Sheet Minor Old
A10: Tag | B10: Descr | C10: Status | D10: Acq Date | E10: Profile ID | F10: Serial ID | G10: Custodian | H10: Location | I10: Year | J10: Cost | K10: Scrap Asset? | L10: Verify Date | M10: Verified By | N10: Detail
A11: ASA0110 | B11: White Board | C11: I | D11: 2019-02-21 | E11: New | F11: No serial ID | G11: L Magalo | H11: 234 | I11: 2019 | J11: 1,965.00 | K11: No | L11: 08/03/2019 | M11: K Madzivha | N11: New asset purchased
A12: ASA0492 | B12: White Board | C12: I | D12: 2019-02-21 | E12: New | F12: No serial ID | G12: Boardroom | H12: 242 | I12: 2019 | J12: 1,965.00
A13: ASA0204 | B13: President Frame | C13: I | D13: 2018-04-01 | E13: CSIR | F13: No serial ID | G13: Test Site | H13: Test Site | I13: 2019 | J13: 250.00 | K13: No | L13: 08/03/2019 | M13: K Madzivha | N13: Old CSIR Asset brought over, deemed value
A14: ASA0205 | B14: Vice President Frame | C14: I | D14: 2018-04-01 | E14: CSIR | F14: No serial ID | G14: Test Site | H14: Test Site | I14: 2019 | J14: 250.00 | K14: No | L14: 08/03/2019 | M14: K Madzivha | N14: Old CSIR Asset brought over, deemed value
A15: ASA0206 | B15: Minister Frame | C15: I | D15: 2018-04-01 | E15: CSIR | F15: No serial ID | G15: Test Site | H15: Test Site | I15: 2019 | J15: 250.00 | K15: No | L15: 08/03/2019 | M15: K Madzivha | N15: Old CSIR Asset brought over, deemed value
A16: ASA0207 | B16: Dep Minister Frame | C16: I | D16: 2018-04-01 | E16: CSIR | F16: No serial ID | G16: Test Site | H16: Test Site | I16: 2019 | J16: 250.00 | K16: No | L16: 08/03/2019 | M16: K Madzivha | N16: Old CSIR Asset brought over, deemed value
A17: ASA0220 | B17: Projector Screen | C17: I | D17: 2018-04-01 | E17: CSIR | F17: No serial ID | G17: Boardroom | H17: 211 | I17: 2019 | J17: 600.00 | K17: No | L17: 08/03/2019 | M17: K Madzivha | N17: Old CSIR Asset brought over, deemed value
A18: ASA0209 | B18: White Board | C18: I | D18: 2019-02-21 | E18: New | F18: No serial ID | G18: C Morgan | H18: 226 | I18: 2019 | J18: 1,965.00 | K18: No | L18: 08/03/2019 | M18: K Madzivha | N18: New asset purchased
A19: ASA1244 | B19: Folding Tables | C19: I | F19: No serial ID | G19: C Morgan | H19: 226 | L19: 04/03/2021 | M19: K Madzivha | N19: Less than R5000.00 and written off in the year of purchase
A20: ASA1243 | B20: Folding Tables | C20: I | F20: No serial ID | G20: C Morgan | H20: 226 | L20: 04/03/2021 | M20: K Madzivha | N20: Less than R5000.00 and written off in the year of purchase
A21: ASA0149 | B21: Folding Tables | C21: I | F21: No serial ID | G21: C Morgan | H21: 226 | L21: 04/03/2021 | M21: K Madzivha | N21: Less than R5000.00 and written off in the year of purchase
A22: ASA1040 | B22: Dell Docking station K16A | C22: I | F22: No serial ID | G22: C Morgan | H22: 226 | L22: 04/03/2021 | M22: K Madzivha | N22: Less than R5000.00 and written off in the year of purchase
A23: ASA1041 | B23: Dell Monitor 23'' | C23: I | F23: No serial ID | G23: C Morgan | H23: 226 | L23: 04/03/2021 | M23: K Madzivha | N23: Less than R5000.00 and written off in the year of purchase
A24: ASA0047 | B24: White Board | C24: I | D24: 2019-02-21 | E24: New | F24: No serial ID | G24: CS | H24: 212 | I24: 2019 | J24: 1,965.00 | K24: No | L24: 08/03/2019 | M24: K Madzivha | N24: New asset purchased
A25: ASA0273 | B25: White Board | C25: I | D25: 2019-02-21 | E25: New | F25: No serial ID | G25: H Tladi | J25: 1,965.00 | K25: No | L25: 08/03/2019 | M25: K Madzivha | N25: Old CSIR Asset brought over, deemed value
A26: ASA1029 | B26: Dell Docking station K16A | C26: I | F26: No serial ID | G26: H Tladi | H26: 229 | L26: 04/03/2021 | M26: K Madzivha | N26: Less than R5000.00 and written off in the year of purchase
A27: ASA1075 | B27: Dell Docking station K16A | C27: I | F27: No serial ID | G27: HR | H27: 212 | I27: 2019 | J27: 3500
A28: ASA1071 | B28: Dell Ultra Sharp 24 | C28: I | F28: No serial ID | G28: HR | H28: 212 | I28: 2019 | J28: 4800
A29: ASA0033 | B29: White Board | C29: I | D29: 2019-02-21 | E29: New | F29: No serial ID | G29: I Masekoa | H29: 209 | I29: 2019 | J29: 1,956.00 | K29: No | L29: 08/03/2019 | M29: K Madzivha | N29: New asset purchased
A30: ASA1061 | B30: Dell Docking station K16A | C30: I | F30: No serial ID | G30: I Masekoa | H30: 230 | L30: 04/03/2022 | M30: K Madzivha | N30: Less than R5000.00 and written off in the year of purchase
A31: ASA1064 | B31: Dell Ultra Sharp 24 | C31: I | F31: No serial ID | G31: I Masekoa | H31: 231 | L31: 04/03/2023 | M31: K Madzivha | N31: Less than R5000.00 and written off in the year of purchase
A32: ASA0071 | B32: Standing Heater | C32: I | D32: 2018-05-24 | E32: New | F32: No serial ID | G32: D Mamaregane | H32: 222 | I32: 2019 | J32: =1160.5/3 -> 386.83 | K32: No | L32: 08/03/2019 | M32: K Madzivha | N32: Less than R5000.00 and written off in the year of purchase
A33: ASA0065 | B33: Agrement Painting | C33: I | D33: 2018-04-01 | E33: CSIR | F33: No serial ID | G33: J Odhiambo | H33: 216 | I33: 2019 | J33: 400.00 | K33: No | L33: 08/03/2019 | M33: K Madzivha | N33: Old CSIR Asset brought over, deemed value
A34: ASA0192 | B34: Vase CEO | C34: I | D34: 1999-04-01 | E34: CSIR | F34: No serial ID | G34: J Odhiambo | H34: 216 | I34: 2019 | J34: =(12892/2)/5 -> 1,289.20 | K34: No | L34: 08/03/2019 | M34: K Madzivha | N34: Old CSIR Asset brought over, on old asset register
A35: ASA0193 | B35: President Frame | C35: I | D35: 2018-04-01 | E35: CSIR | F35: No serial ID | G35: J Odhiambo | H35: 216 | I35: 2019 | J35: 250.00 | K35: No | L35: 08/03/2019 | M35: K Madzivha | N35: Old CSIR Asset brought over, deemed value
A36: ASA0194 | B36: Minister Frame | C36: I | D36: 2018-04-01 | E36: CSIR | F36: No serial ID | G36: J Odhiambo | H36: 216 | I36: 2019 | J36: 250.00 | K36: No | L36: 08/03/2019 | M36: K Madzivha | N36: Old CSIR Asset brought over, deemed value
A37: ASA0195 | B37: Dep Minister Frame | C37: I | D37: 2018-04-01 | E37: CSIR | F37: No serial ID | G37: J Odhiambo | H37: 216 | I37: 2019 | J37: 250.00 | K37: No | L37: 08/03/2019 | M37: K Madzivha | N37: Old CSIR Asset brought over, deemed value
A38: ASA0079 | B38: White Board | C38: I | D38: 2019-02-21 | E38: New | F38: No serial ID | G38: K Madzivha | H38: 220 | I38: 2019 | J38: 1,965.00 | K38: No | L38: 08/03/2019 | M38: K Madzivha | N38: New asset purchased
A39: ASA0144 | B39: Microwave | C39: I | D39: 2018-04-01 | E39: CSIR | F39: No serial ID | G39: Kitchen | H39: 251 | I39: 2019 | J39: 550.00 | K39: No | L39: 08/03/2019 | M39: K Madzivha | N39: Old CSIR Asset brought over, deemed value
A40: ASA0145 | B40: Fridge | C40: I | D40: 2018-04-01 | E40: CSIR | F40: No serial ID | G40: Kitchen | H40: 251 | I40: 2019 | J40: 1,500.00 | K40: No | L40: 08/03/2019 | M40: K Madzivha | N40: Old CSIR Asset brought over, deemed value
A41: ASA0146 | B41: Paper Dispenser | C41: I | D41: 2019-02-28 | E41: CSIR | F41: No serial ID | G41: Kitchen | H41: 251 | I41: 2019 | J41: 2,390.00 | K41: No | L41: 08/03/2019 | M41: K Madzivha | N41: New asset purchased
A42: ASA1122 | B42: Water Cooler | C42: I | D42: 2019/03/07 | E42: New | F42: No serial ID | G42: Kitchen | H42: 251 | I42: 2019 | J42: 3,850.00 | K42: No | L42: 08/03/2019 | M42: K Madzivha | N42: New asset purchased
A43: ASA0147 | B43: Kitchen Trolley | C43: I | D43: 2005-02-02 | E43: Old | F43: No serial ID | G43: Kitchen | H43: 251 | I43: 2019 | J43: 175 | K43: No | L43: 03/03/2019 | M43: K Madzivha | N43: Less than R5000.00 and written off in the year of purchase
A44: ASA0113 | B44: Laminator | C44: I | D44: 2018-03-29 | E44: New | F44: No serial ID | G44: L Majoro | H44: 237 | I44: 2019 | J44: 4,326.30 | K44: No | L44: 08/03/2019 | M44: K Madzivha | N44: New asset purchased
A45: ASA0036 | B45: White Board | C45: I | D45: 2019-02-21 | E45: New | F45: No serial ID | G45: L Makwedini | H45: 210 | I45: 2019 | J45: 1,965.00 | K45: No | L45: 08/03/2019 | M45: K Madzivha | N45: New asset purchased
A46: ASA0118 | B46: First Aid Kit | C46: I | D46: 2018-04-01 | E46: CSIR | F46: No serial ID | G46: L Mokone | H46: 239 | I46: 2019 | J46: 1,500.00 | K46: No | L46: 08/03/2019 | M46: K Madzivha | N46: Old CSIR Asset brought over, deemed value
A47: ASA0092 | B47: White Board | C47: I | D47: 2019-02-21 | E47: New | F47: No serial ID | G47: M Mabuse | H47: 224 | I47: 2019 | J47: 1,965.00 | K47: No | L47: 08/03/2019 | M47: K Madzivha | N47: New asset purchased
A48: ASA1044 | B48: Dell Monitor 23'' | C48: I | F48: No serial ID | G48: M Mabuse | H48: 226 | K48: No | L48: 03/03/2020 | M48: K Madzivha | N48: Less than R5000.00 and written off in the year of purchase
A49: ASA0208 | B49: White Board | C49: I | D49: 2019-02-21 | E49: New | F49: No serial ID | G49: M Mahlaule | H49: 239 | I49: 2019 | J49: 1,965.00 | K49: No | L49: 08/03/2019 | M49: K Madzivha | N49: New asset purchased
A50: ASA1035 | B50: Dell Docking station K16A | C50: I | F50: No serial ID | G50: M Mahlaule | H50: 239 | L50: 04/03/2021 | M50: K Madzivha | N50: Less than R5000.00 and written off in the year of purchase
A51: ASA1034 | B51: Dell Ultra Sharp 24 | C51: I | F51: No serial ID | G51: M Mahlaule | H51: 239 | L51: 04/03/2021 | M51: K Madzivha | N51: Less than R5000.00 and written off in the year of purchase
A52: ASA0133 | B52: Whiteboard Planner | C52: I | D52: 2019-02-21 | E52: New | F52: No serial ID | G52: O Mvundlela | H52: 245 | I52: 2019 | J52: 1,732.00 | K52: No | L52: 08/03/2019 | M52: K Madzivha | N52: New asset purchased
A53: ASA0138 | B53: White Board | C53: I | D53: 2019-02-21 | E53: New | F53: No serial ID | G53: O Mvundlela | H53: 245 | I53: 2019 | J53: 1,965.00 | K53: No | L53: 08/03/2019 | M53: K Madzivha | N53: New asset purchased
A54: ASA1039 | B54: Dell Ultra Sharp 24 | C54: I | F54: No serial ID | G54: O Mvundlela | H54: 245 | L54: 04/03/2021 | M54: K Madzivha | N54: Less than R5000.00 and written off in the year of purchase
A55: ASA1037 | B55: Dell Docking station K16A | C55: I | F55: No serial ID | G55: O Mvundlela | H55: 245 | L55: 04/03/2021 | M55: K Madzivha | N55: Less than R5000.00 and written off in the year of purchase
A56: ASA0125 | B56: White Board | C56: I | D56: 2019-02-21 | E56: New | F56: No serial ID | G56: O Ramantsi | H56: 241 | I56: 2019 | J56: 1,965.00 | K56: No | L56: 08/03/2019 | M56: K Madzivha | N56: New asset purchased
A57: ASA0128 | B57: First Aid Kit | C57: I | D57: 2018-04-01 | E57: CSIR | F57: No serial ID | G57: O Ramantsi | H57: 241 | I57: 2019 | J57: 1,500.00 | K57: No | L57: 08/03/2019 | M57: K Madzivha | N57: Old CSIR Asset brought over, deemed value
A58: ASA0129 | B58: First Aid Kit | C58: I | D58: 2018-04-01 | E58: CSIR | F58: No serial ID | G58: O Ramantsi | H58: 241 | I58: 2019 | J58: 1,500.00 | K58: No | L58: 08/03/2019 | M58: K Madzivha | N58: Old CSIR Asset brought over, deemed value
A59: ASA1086 | B59: Dell Ultra Sharp 24 | C59: I | F59: No serial ID | G59: O Ramantsi | H59: 241 | L59: 04/03/2021 | M59: K Madzivha | N59: Less than R5000.00 and written off in the year of purchase
A60: ASA0040 | B60: IN/OUT Board | C60: I | D60: 15/05/2018 | E60: New | F60: No serial ID | G60: Passage | I60: 2019 | J60: =4769.28/2 -> 2,384.64 | K60: No | L60: 08/03/2019 | M60: K Madzivha | N60: New asset purchased
A61: ASA0041 | B61: IN/OUT Board | C61: I | D61: 15/05/2018 | E61: New | F61: No serial ID | G61: Passage | I61: 2019 | J61: =4769.28/2 -> 2,384.64 | K61: No | L61: 08/03/2019 | M61: K Madzivha | N61: New asset purchased
A62: ASA0196 | B62: Bulletin Board 3000x1200 | C62: I | D62: 2019-05-15 | E62: New | F62: No serial ID | G62: Passage | H62: Passage | I62: 2019 | J62: 1,962.19 | K62: No | L62: 08/03/2019 | M62: K Madzivha | N62: New asset purchased
A63: ASA0197 | B63: Bulletin Board 1500x1200 | C63: I | D63: 2019-05-15 | E63: New | F63: No serial ID | G63: Passage | H63: Passage | I63: 2019 | J63: 1,032.41 | K63: No | L63: 08/03/2019 | M63: K Madzivha | N63: New asset purchased
A64: ASA0148 | B64: Glass Cabinet | C64: I | D64: 2005-02-02 | E64: Old | F64: No serial ID | G64: Printer Room | H64: 249 | I64: 2019 | J64: 3,004.56 | K64: No | L64: 03/03/2018 | M64: K Madzivha | N64: Less than R5000.00 and written off in the year of purchase
A65: ASA0031 | B65: White Board | C65: I | D65: 2019-02-21 | E65: New | F65: No serial ID | G65: R Singh | H65: 208 | I65: 2019 | J65: 1,965.00 | K65: No | L65: 08/03/2019 | M65: K Madzivha | N65: New asset purchased
A66: ASA0072 | B66: Air Purifier | C66: I | D66: 17/04/2018 | E66: New | F66: No serial ID | G66: R Somanje | H66: 218 | I66: 2019 | J66: 527.56 | K66: No | L66: 08/03/2019 | M66: K Madzivha | N66: Less than R5000.00 and written off in the year of purchase
A67: ASA0074 | B67: White Planner Board | C67: I | D67: 2019-02-21 | E67: New | F67: No serial ID | G67: R Somanje | H67: 218 | I67: 2019 | J67: 1,732.00 | K67: No | L67: 08/03/2019 | M67: K Madzivha | N67: New asset purchased
A68: ASA1031 | B68: Dell Docking station K16A | C68: I | F68: No serial ID | G68: R Somanje | H68: 218 | I68: 2019 | K68: No | L68: 03/03/2021 | M68: K Madzivha | N68: Less than R5000.00 and written off in the year of purchase
A69: ASA0004 | B69: Watercooler | C69: I | D69: 2017-12-19 | E69: New | F69: No serial ID | G69: Reception | H69: 202 | I69: 2019 | J69: 2,709.00 | K69: No | L69: 08/03/2019 | M69: K Madzivha | N69: Less than R5000.00 and written off in the year of purchase
A70: ASA0021 | B70: Tender Box | C70: I | D70: 2018-04-19 | E70: New | F70: No serial ID | G70: Reception | H70: 202 | I70: 2019 | J70: 4,959.00 | K70: No | L70: 08/03/2019 | M70: K Madzivha | N70: New asset purchased
A71: ASA0176 | B71: Plaques | C71: I | D71: 2018-04-01 | E71: CSIR | F71: No serial ID | G71: Reception | H71: 202 | I71: 2019 | J71: 300.00 | K71: No | L71: 08/03/2019 | M71: K Madzivha | N71: Old CSIR Asset brought over, deemed value
A72: ASA0177 | B72: Plaques | C72: I | D72: 2018-04-01 | E72: CSIR | F72: No serial ID | G72: Reception | H72: 202 | I72: 2019 | J72: 300.00 | K72: No | L72: 08/03/2019 | M72: K Madzivha | N72: Old CSIR Asset brought over, deemed value
A73: ASA0178 | B73: Pamphlet Stand | C73: I | D73: 2018-04-01 | E73: CSIR | F73: No serial ID | G73: Reception | H73: 202 | I73: 2019 | J73: 250.00 | K73: No | L73: 08/03/2019 | M73: K Madzivha | N73: Old CSIR Asset brought over, deemed value
A74: ASA0179 | B74: Brown Vase | C74: I | D74: 1999-04-01 | E74: CSIR | F74: No serial ID | G74: Reception | H74: 202 | I74: 2019 | J74: =(12892/2)/5 -> 1,289.20 | K74: No | L74: 08/03/2019 | M74: K Madzivha | N74: Old CSIR Asset brought over, on old asset register
A75: ASA0180 | B75: Glass Frame 2 Sculpt | C75: I | D75: 2018-04-01 | E75: CSIR | F75: No serial ID | G75: Reception | H75: 202 | I75: 2019 | J75: 250.00 | K75: No | L75: 08/03/2019 | M75: K Madzivha | N75: Old CSIR Asset brought over, deemed value
A76: ASA0181 | B76: Glass Frame 1 Sculpt | C76: I | D76: 2018-04-01 | E76: CSIR | F76: No serial ID | G76: Reception | H76: 202 | I76: 2019 | J76: 250.00 | K76: No | L76: 08/03/2019 | M76: K Madzivha | N76: Old CSIR Asset brought over, deemed value
A77: ASA0182 | B77: Glass Frame 1 Sculpt | C77: I | D77: 2018-04-01 | E77: CSIR | F77: No serial ID | G77: Reception | H77: 202 | I77: 2019 | J77: 250.00 | K77: No | L77: 08/03/2019 | M77: K Madzivha | N77: Old CSIR Asset brought over, deemed value
A78: ASA0183 | B78: Glass Frame Mixed | C78: I | D78: 2018-04-01 | E78: CSIR | F78: No serial ID | G78: Reception | H78: 202 | I78: 2019 | J78: 250.00 | K78: No | L78: 08/03/2019 | M78: K Madzivha | N78: Old CSIR Asset brought over, deemed value
A79: ASA0184 | B79: President Frame | C79: I | D79: 2018-04-01 | E79: CSIR | F79: No serial ID | G79: J Odhiambo | H79: 216 | I79: 2019 | J79: 250.00 | K79: No | L79: 08/03/2019 | M79: K Madzivha | N79: Old CSIR Asset brought over, deemed value
A80: ASA0185 | B80: Picture Frame | C80: I | D80: 2018-04-01 | E80: CSIR | F80: No serial ID | G80: J Odhiambo | H80: 216 | I80: 2019 | J80: 250.00 | K80: No | L80: 08/03/2019 | M80: K Madzivha | N80: Old CSIR Asset brought over, deemed value
A81: ASA0186 | B81: Picture Frame | C81: I | D81: 2018-04-01 | E81: CSIR | F81: No serial ID | G81: J Odhiambo | H81: 216 | I81: 2019 | J81: 250.00 | K81: No | L81: 08/03/2019 | M81: K Madzivha | N81: Old CSIR Asset brought over, deemed value
A82: ASA0187 | B82: Minister Frame | C82: I | D82: 2018-04-01 | E82: CSIR | F82: No serial ID | G82: J Odhiambo | H82: 216 | I82: 2019 | J82: 250.00 | K82: No | L82: 08/03/2019 | M82: K Madzivha | N82: Old CSIR Asset brought over, deemed value
A83: ASA0188 | B83: Vase Long | C83: I | D83: 1999-04-01 | E83: CSIR | F83: No serial ID | G83: Reception | H83: 202 | I83: 2019 | J83: =(12892/2)/5 -> 1,289.20 | K83: No | L83: 08/03/2019 | M83: K Madzivha | N83: Old CSIR Asset brought over, on old asset register
A84: ASA0189 | B84: Vase Thick | C84: I | D84: 1999-04-01 | E84: CSIR | F84: No serial ID | G84: Reception | H84: 202 | I84: 2019 | J84: =(12892/2)/5 -> 1,289.20 | K84: No | L84: 08/03/2019 | M84: K Madzivha | N84: Old CSIR Asset brought over, on old asset register
A85: ASA0190 | B85: Vase Small | C85: I | D85: 1999-04-01 | E85: CSIR | F85: No serial ID | G85: Reception | H85: 202 | I85: 2019 | J85: =(12892/2)/5 -> 1,289.20 | K85: No | L85: 08/03/2019 | M85: K Madzivha | N85: Old CSIR Asset brought over, on old asset register
B86: OLYMPUS DIGITAL VOICE RECORDER | C86: I | D86: 2012-03-26 | E86: GRANT | F86: No serial ID | G86: RSingh | H86: 208 | I86: 2019 | J86: 2,192.11 | K86: No | L86: 08/03/2019 | M86: K Madzivha | N86: Old CSIR Asset brought over, on old asset register
A87: ASA0070 | B87: Standing Fan | C87: I | D87: 2018-05-24 | E87: New | F87: No serial ID | G87: S Molete | H87: 214 | I87: 2019 | J87: =1160.5/3 -> 386.83 | K87: No | L87: 08/03/2019 | M87: K Madzivha | N87: Less than R5000.00 and written off in the year of purchase
A88: ASA0191 | B88: Air Purifier | C88: I | D88: 17/04/2018 | E88: New | F88: No serial ID | G88: S Molete | H88: 214 | I88: 2019 | J88: 527.56 | K88: No | L88: 08/03/2019 | M88: K Madzivha | N88: Less than R5000.00 and written off in the year of purchase
A89: ASA1083 | B89: Dell Ultra Sharp 24 | G89: S Molete | H89: 213 | L89: 04/03/2023 | M89: K Madzivha | N89: Less than R5000.00 and written off in the year of purchase
A90: ASA0058 | B90: Mini Fridge | G90: S Molete | H90: 213 | L90: 04/03/2023 | M90: K Madzivha | N90: Less than R5000.00 and written off in the year of purchase
B91: Standing Heater | C91: I | D91: 2018-05-24 | E91: New | F91: No serial ID | G91: S Ndamashe | J91: =1160.5/3 -> 386.83 | K91: No | L91: 08/03/2019 | M91: K Madzivha | N91: Less than R5000.00 and written off in the year of purchase
A92: ASA0242 | B92: Garmin | C92: I | D92: 2015/06/23 | E92: CSIR | F92: No serial ID | G92: S Silingo | H92: PE C206 | I92: 2019 | J92: 3,244.74 | K92: No | L92: 08/03/2019 | M92: K Madzivha | N92: Old CSIR Asset brought over, deemed value
A93: ASA0243 | B93: CANON POWERSHOT CAMERA | C93: I | D93: 2011-03-11 | E93: CSIR | F93: No serial ID | G93: S Silingo | H93: PE C206 | I93: 2019 | J93: 4,470.96 | K93: No | L93: 08/03/2019 | M93: K Madzivha | N93: Old CSIR Asset brought over, on old asset register
A94: ASA0255 | B94: White Board | C94: I | D94: 2018-04-01 | E94: New | F94: No serial ID | G94: S Silingo | H94: PE C206 | I94: 2019 | J94: 200.00 | K94: No | L94: 08/03/2019 | M94: K Madzivha | N94: Old CSIR Asset brought over, deemed value
A95: ASA0256 | B95: White Board | C95: I | D95: 2018-04-01 | E95: New | F95: No serial ID | G95: S Silingo | H95: PE C206 | I95: 2019 | J95: 200.00 | K95: No | L95: 08/03/2019 | M95: K Madzivha | N95: Old CSIR Asset brought over, deemed value
A96: ASA0257 | B96: Microwave Samsung | C96: I | D96: 2018-04-01 | E96: CSIR | F96: No serial ID | G96: S Silingo | H96: PE C206 | I96: 2019 | J96: 550.00 | K96: No | L96: 08/03/2019 | M96: K Madzivha | N96: Old CSIR Asset brought over, deemed value
A97: ASA0015 | B97: White Board | C97: I | D97: 2019-02-21 | E97: New | F97: No serial ID | G97: S Skosana | H97: 205 | I97: 2019 | J97: 1,965.00 | K97: No | L97: 08/03/2019 | M97: K Madzivha | N97: New asset purchased
A98: ASA0017 | B98: Mirror | C98: I | D98: 2003/07/09 | E98: CSIR | F98: No serial ID | G98: Small Board | H98: 204 | I98: 2019 | J98: =5598*0.25 -> 1,399.50 | K98: No | L98: 08/03/2019 | M98: K Madzivha | N98: Old CSIR Asset brought over, on old asset register
A99: ASA0081 | B99: Mirror | C99: I | D99: 2003-07-09 | E99: CSIR | F99: No serial ID | G99: J Odhiambo | H99: 216 | I99: 2019 | J99: 1,399.50 | K99: No | L99: 08/03/2019 | M99: K Madzivha | N99: Old CSIR Asset brought over, deemed value
A100: ASA0085 | B100: White Board | C100: I | D100: 2019-02-21 | E100: New | F100: No serial ID | G100: D Mamaregane | H100: 222 | I100: 2019 | J100: 1,965.00 | K100: No | L100: 08/03/2019 | M100: K Madzivha | N100: New asset purchased
A101: ASA0023 | B101: White Board | C101: I | D101: 2019-02-21 | E101: New | F101: No serial ID | G101: T Zama | H101: 207 | I101: 2019 | J101: 1,965.00 | K101: No | L101: 08/03/2019 | M101: K Madzivha | N101: New asset purchased
A102: ASA0200 | B102: White Board | C102: I | D102: 2019-02-21 | E102: New | F102: No serial ID | G102: Z Thusi | H102: 232 | I102: 2019 | J102: 1,965.00 | K102: No | L102: 08/03/2019 | M102: K Madzivha | N102: New asset purchased
A103: ASA1077 | B103: Dell Monitor 23'' | C103: I | G103: M Mabuse | M103: K Madzivha
A104: ASA1065 | B104: Dell Ultra Sharp 24 | C104: I | G104: T Zama | H104: 207 | M104: K Madzivha
A105: ASA1066 | B105: Dell Docking station K16A | C105: I | G105: T Zama | H105: 207 | M105: K Madzivha
A106: ASA1052 | B106: Dell Ultra Sharp 24 | C106: I | G106: L Makwedini | H106: 210 | M106: K Madzivha
A107: ASA0567 | B107: White Board | C107: I | G107: T Mtolo | H107: 214 | M107: K Madzivha
A108: ASA0060 | B108: Coat Hanger | C108: I | G108: J Odhiambo | H108: 216 | M108: K Madzivha
A109: ASA1252 | B109: Dell Docking station K16A | C109: I | G109: J Odhiambo | H109: 216 | M109: K Madzivha
A110: ASA1251 | B110: Dell Ultra Sharp 24 | C110: I | G110: J Odhiambo | H110: 216 | M110: K Madzivha
A111: ASA1096 | B111: Dell Docking station K16A | C111: I | G111: L Mashigo | H111: 217 | M111: K Madzivha
A112: ASA1097 | B112: Dell Ultra Sharp 24 | C112: I | G112: L Mashigo | H112: 217 | M112: K Madzivha
A113: ASA1006 | B113: Dell Ultra Sharp 24 | C113: I | G113: L Mafolo | H113: 217 | M113: K Madzivha
A114: ASA1013 | B114: Dell Docking station K16A | C114: I | G114: D Mamaregane | H114: 222 | M114: K Madzivha
A115: ASA1032 | B115: Dell Ultra Sharp 24 | C115: I | G115: D Mamaregane | H115: 222 | M115: K Madzivha
A116: ASA1007 | B116: Dell Monitor 23'' | C116: I | G116: L Bhembe | H116: 243 | M116: K Madzivha
A117: ASA0570 | B117: White Board | C117: I | G117: L Bhembe | H117: 243 | M117: K Madzivha
A118: ASA1255 | B118: Dell Monitor 23'' | C118: I | G118: Server | M118: K Madzivha
A119: ASA1073 | B119: Dell Docking station K16A | C119: I | G119: Z Thusi | H119: 232 | M119: K Madzivha
A120: ASA1072 | B120: Dell Ultra Sharp 24 | C120: I | G120: Z Thusi | H120: 232 | M120: K Madzivha
A121: ASA1019 | B121: Dell Ultra Sharp 24 | C121: I | G121: Z Nkosi | H121: 233 | M121: K Madzivha
A122: ASA1022 | B122: Dell Ultra Sharp 24 | C122: I | G122: E Moloto | H122: 233 | M122: K Madzivha
A123: ASA1051 | B123: Dell Ultra Sharp 24 | C123: I | G123: S Silingo | H123: 233 | M123: K Madzivha
A124: ASA1010 | B124: Dell Ultra Sharp 24 | C124: I | G124: A Tintelo | H124: 233 | M124: K Madzivha
A125: ASA0565 | B125: White Board | C125: I | G125: S Ndamashe | H125: 231 | M125: K Madzivha
A126: ASA1025 | B126: Dell Ultra Sharp 24 | C126: I | G126: L Magalo | H126: 234 | M126: K Madzivha

Sheet Sheet2 (hidden)
B11: Rems Power Press
